[Event "Romanian Rapid Open 2022"]
[Site "Sebes"]
[Date "2022.12.02"]
[Round "2.2"]
[White "Cordea, David"]
[Black "Ardelean, George-Catalin"]
[Result "0-1"]
[ECO "A46"]
[WhiteElo "2049"]
[BlackElo "2473"]
[Annotator "TA"]
[PlyCount "143"]
[EventDate "2022.12.02"]
[EventType "rapid"]
[EventCountry "ROU"]
[SourceTitle "playchess.com"]
[Source "ChessBase"]
[SourceQuality "1"]
[TimeControl "600+5"]

{[%evp 9,143,3,31,8,10,-17,0,-12,-14,-46,-22,-51,-16,-16,-8,-12,-15,-14,-19,-13,1,-1,0,-5,0,13,14,8,11,0,0,-14,-4,-39,-20,-31,-33,-37,-29,-127,-123,-130,-122,-125,-27,-115,0,-120,-142,-179,-172,-189,-188,-191,-191,-172,-134,-150,-127,-169,-124,-121,-114,-92,-87,-187,-104,-121,-134,-108,-122,-207,-81,-100,-94,-192,-199,-276,-214,-198,-118,-161,-163,-171,-153,-140,-105,-452,-425,-597,-407,-677,-678,-603,-384,-1640,-1603,-29967,-29968,-29966,-29967,-29975,-29976,-29976,-29977,-29979,-29976,-29977,-29976,-29977,-29978,-29976,-29976,-29977,-29978,-29978,-29977,-29973,-29974,-29973,-29971,-29969,-29971,-29971,-29969,-29971,-29971,-29972,-29973,-29978,-29979,-29978,-29978,-29991,-29992,-29992]} 1. d4 {[%emt 0:00:03]} d5 {[%emt 0:00:02]} 2. Nf3 {[%emt 0:00:02]} e6 {[%emt 0:00:03]} 3. g3 {[%emt 0:00:04]} b5 {[%emt 0:00:34]} 4. Bg2 {[%emt 0:00:05]} Nf6 {[%emt 0:00:13]} 5. O-O {[%emt 0:00:02]} c5 {[%emt 0:00:04]} 6. c3 {[%emt 0:00:10] A46: 1 d4 Nf6 2 Nf3 e6: Torre, London and Colle Systems.} (6. a4 $5 {[%cal Ra4b5]}) 6... Nbd7 {[%emt 0:00:25]} 7. Nbd2 {[%emt 0:00:18][%cal Oe2e4]} Bb7 {[%emt 0:00:12]} 8. Re1 {[%emt 0:00:46][%cal Oe2e4] The position is equal.} Be7 {[%emt 0:00:13]} 9. Nb3 {[%emt 0:00:41]} O-O {[%emt 0:00:15]} (9... c4 $5 {[%cal Rc4b3]} 10. Nbd2 O-O $15) 10. Bf4 {[%emt 0:01:01] [#]} Qb6 $146 {[%emt 0:00:27]} ({Predecessor:} 10... c4 11. Nbd2 Nh5 12. e3 b4 13. Ne5 Nxf4 14. exf4 Nxe5 15. fxe5 Qb6 16. f4 Rab8 {½-½ (55) Lie,E (2464)-Stanford,M (2380) Tromsoe 2010}) 11. dxc5 {[%emt 0:00:47]} Nxc5 {[%emt 0:00:04]} 12. Be3 {[%emt 0:00:15]} Nfd7 {[%emt 0:00:58]} 13. Nxc5 {[%emt 0:00:03]} Bxc5 {[%emt 0:00:02]} 14. Bxc5 {[%emt 0:00:04]} Qxc5 {[%emt 0:00:25]} 15. Qd4 {[%emt 0:00:23]} (15. e4 {is more complex.} a5 16. a3 dxe4 17. Qxd7 exf3 18. Qxb7 fxg2 19. Red1) 15... Qc7 {[%emt 0:00:10]} 16. Red1 {[%emt 0:02:10]} e5 {[%emt 0:00:38]} 17. Qb4 {[%emt 0:00:02]} Bc6 {[%emt 0:00:11]} 18. Nh4 {[%emt 0:00:18][%cal Oh4f5] Threatens to win with Nf5!} a5 {[%emt 0:00:16]} 19. Qe7 {[%emt 0:00:11]} (19. Qa3 $5 {[%cal Rh4f5]}) 19... Rfe8 {[%emt 0:00:13]} 20. Qg5 {[%emt 0:00:02][%cal Oh4f5]} h6 {[%emt 0:00:04]} 21. Qd2 {[%emt 0:00:09]} (21. Qe3 $5 {[%cal Rg2d5]}) 21... Nf6 {[%emt 0:00:11]} 22. Nf5 {[%emt 0:00:13]} Rad8 {[%emt 0:00:08]} 23. h3 {[%emt 0:00:14]} Bd7 {[%emt 0:00:52]} 24. Nxh6+ {[%emt 0:00:33]} gxh6 $17 {[%emt 0:00:17]} 25. Qxh6 {[%emt 0:00:01]} Qc6 {[%emt 0:01:07]} 26. Qg5+ {[%emt 0:00:32]} Kh8 {[%emt 0:00:28]} (26... Kf8 $17 27. a4 bxa4) 27. Qh4+ {[%emt 0:00:02]} (27. a4 $11) 27... Kg8 {[%emt 0:00:03]} 28. Qg5+ $1 {[%emt 0:00:01]} Kf8 {[%emt 0:00:03]} 29. e3 {[%emt 0:01:01]} Qe6 {[%emt 0:00:15]} 30. g4 {[%emt 0:00:43]} Bc6 {[%emt 0:00:07]} 31. Rd2 {[%emt 0:00:07]} Nh7 {[%emt 0:00:55]} 32. Qh4 {[%emt 0:00:04]} Qg6 {[%emt 0:00:19]} 33. Rad1 {[%emt 0:00:06]} e4 {[%emt 0:00:33]} 34. b3 {[%emt 0:00:18][%cal Oc3c4]} Kg7 {[%emt 0:00:36] Prevents c4.} 35. c4 {[%emt 0:00:02]} bxc4 {[%emt 0:00:01]} 36. bxc4 {[%emt 0:00:01]} Ng5 {[%emt 0:00:08] aiming for ...Qf6.} 37. cxd5 {[%emt 0:00:09]} (37. Qg3 $17) 37... Bb5 {[%emt 0:00:01]} ({Black should play} 37... Rh8 $19 38. Qg3 Ba4) 38. Qg3 {[%emt 0:00:10] [#]} Bd3 $1 {[%emt 0:00:20]} 39. h4 {[%emt 0:00:07]} Nh7 {[%emt 0:00:00]} 40. f4 {[%emt 0:00:16]} (40. f3 $17) 40... exf3 {[%emt 0:00:11]} (40... Rxd5 41. Bh3 $17) (40... Nf6 $19 {is more deadly.} 41. Bh3 Nxd5) 41. Qxf3 {[%emt 0:00:25]} Be4 {[%emt 0:00:01]} 42. Qg3 {[%emt 0:00:33]} (42. Qf4 $17 {was called for.}) 42... Bxg2 $19 {[%emt 0:00:02]} 43. Kxg2 {[%emt 0:00:03]} (43. Rxg2 {was necessary.} Nf6 44. Qf3) 43... Nf6 {[%emt 0:00:02]} 44. Rd4 {[%emt 0:00:04] [#]} Re4 {[%emt 0:00:35]} (44... Rb8 $1 $19 {[%cal Rb8b2]} 45. Rf1 Rb2+ 46. Kg1 Re2) 45. Rxe4 {[%emt 0:00:11]} Qxe4+ {[%emt 0:01:06]} ({And not} 45... Nxe4 46. Qe5+ Kg8 47. Qf5 $17) 46. Qf3 {[%emt 0:00:11]} Qe5 {[%emt 0:00:00][%cal Rd8d5]} ({Not} 46... Qxg4+ 47. Qxg4+ Nxg4 48. Kf3 Ne5+ 49. Kf4 $17) 47. Rd4 {[%emt 0:00:07]} Nxd5 {[%emt 0:00:00] Black has more active pieces.} 48. Re4 {[%emt 0:00:04][%mdl 8192] White does not recover from this.} (48. Kh3 $17 {nothing else works.}) 48... Qb2+ {[%emt 0:00:00]} 49. Kg3 {[%emt 0:00:02]} (49. Qf2 {might work better.} Qc1 50. h5) 49... Nf6 {[%emt 0:00:00]} ({Weaker is} 49... Qxa2 50. Qf5 $17) 50. Rf4 {[%emt 0:00:03]} (50. Rc4 $142) 50... Qe5 {[%emt 0:00:00] ...Rd3 is the strong threat.} 51. Kh3 {[%emt 0:00:07]} Qe6 {[%emt 0:00:00] Strongly threatening ...Rd3.} 52. Kg3 $2 {[%emt 0:00:05]} (52. h5 Nxh5 53. Re4) 52... Rd3 {[%emt 0:00:00]} 53. g5 {[%emt 0:00:09]} Rxe3 {[%emt 0:00:00] Black mates.} 54. gxf6+ {[%emt 0:00:06] KQR-KQR} Kh6 {[%emt 0:00:00]} 55. a3 {[%emt 0:00:07]} Rxf3+ {[%emt 0:00:00]} 56. Rxf3 {[%emt 0:00:01] KQ-KR} Kh5 {[%emt 0:00:04]} 57. Rf4 {[%emt 0:00:08]} Qe3+ {[%emt 0:00:05]} 58. Rf3 {[%emt 0:00:01]} Qe1+ {[%emt 0:00:03]} 59. Kf4 {[%emt 0:00:02]} Kxh4 {[%emt 0:00:11]} 60. Re3 {[%emt 0:00:10]} Qd2 {[%emt 0:00:14]} 61. Ke4 {[%emt 0:00:04]} Kg4 {[%emt 0:00:09]} 62. Rd3 {[%emt 0:00:01]} Qc2 {[%emt 0:00:05]} 63. Kd4 {[%emt 0:00:06]} Kf4 {[%emt 0:00:09]} 64. Rc3 {[%emt 0:00:08]} Qb2 {[%emt 0:00:07]} 65. Kd3 {[%emt 0:00:03]} Qb5+ {[%emt 0:00:15]} 66. Kc2 {[%emt 0:00:04]} Qb6 {[%emt 0:00:09]} 67. Rc4+ {[%emt 0:00:04]} Kf5 {[%emt 0:00:02]} 68. Kc3 {[%emt 0:00:05]} Kxf6 {[%emt 0:00:02]} 69. a4 {[%emt 0:00:02]} Kg5 {[%emt 0:00:04]} 70. Rd4 {[%emt 0:00:03]} f5 {[%emt 0:00:02]} 71. Rd5 {[%emt 0:00:01]} Qb4+ {[%emt 0:00:03]} 72. Kd3 {[%emt 0:00:01] Weighted Error Value: White=0.59/Black=0.26 (precise)} 0-1

[Event "Romanian Rapid Open 2022"]
[Site "Sebes"]
[Date "2022.12.02"]
[Round "2.3"]
[White "Gavrilescu, David"]
[Black "Tampea, Radu"]
[Result "1-0"]
[ECO "B31"]
[WhiteElo "2523"]
[BlackElo "2110"]
[Annotator "TA"]
[PlyCount "51"]
[EventDate "2022.12.02"]
[EventType "rapid"]
[EventCountry "ROU"]
[SourceTitle "playchess.com"]
[Source "ChessBase"]
[SourceQuality "1"]
[TimeControl "600+5"]

{[%evp 16,51,23,12,12,-32,6,-8,-3,-10,-18,-12,-6,-29,29,31,31,37,99,98,177,159,187,134,250,107,218,232,666,656,1221,1187,2440,2220,29988,29989,29994,29995]} 1. e4 {[%emt 0:00:02]} c5 {[%emt 0:00:01]} 2. Nf3 {[%emt 0:00:02]} Nc6 {[%emt 0:00:01]} 3. Bb5 {[%emt 0:00:02]} g6 {[%emt 0:00:02]} 4. O-O {[%emt 0:00:03]} Bg7 {[%emt 0:00:01]} 5. c3 {[%emt 0:00:02]} e5 {[%emt 0:00:01]} 6. d4 {[%emt 0:00:07]} cxd4 {[%emt 0:00:02]} 7. cxd4 {[%emt 0:00:02]} exd4 {[%emt 0:00:01]} 8. Bf4 {[%emt 0:00:02]} a6 {[%emt 0:00:18]} 9. Bc4 {[%emt 0:00:10][%mdl 1024] White has compensation.} d6 {[%emt 0:00:26] B31: Sicilian: 2...Nc6 3 Bb5 g6.} 10. Nbd2 {[%emt 0:03:11] [#]} (10. Ng5 {feels hotter.} Nh6 11. Bd5 O-O 12. h3) 10... b5 $146 {[%emt 0:01:19]} ({Predecessor:} 10... h6 11. Bd5 Nge7 12. Nc4 O-O 13. Bxd6 Re8 14. Bg3 Rf8 15. h3 Nxd5 16. exd5 Ne7 17. Nxd4 Nxd5 {1-0 (44) Anand,V (2751)-Wang,H (2744) Stavanger 2022}) 11. Bd5 {[%emt 0:00:18]} Nge7 {[%emt 0:00:01] The position is equal.} 12. Nb3 {[%emt 0:01:29]} Nxd5 {[%emt 0:02:02]} 13. exd5 {[%emt 0:00:02]} Ne5 {[%emt 0:00:02]} 14. Nbxd4 {[%emt 0:01:50]} (14. Re1 {simplifies} O-O 15. Nxe5 dxe5 16. Bxe5 Qxd5 17. Bxg7 Kxg7 18. Qxd4+ Qxd4 19. Nxd4 Ra7 20. Rad1) 14... O-O {[%emt 0:00:02]} (14... Nxf3+ $142 15. Nxf3 O-O) 15. Nc6 $11 {[%emt 0:00:20]} Nxc6 {[%emt 0:04:44]} 16. dxc6 {[%emt 0:03:43]} d5 (16... Bf5 $14) 17. Qd2 $16 {[%emt 0:00:00] White is more active.} Bg4 {[%emt 0:00:24]} (17... d4 $16) 18. Ne5 {[%emt 0:00:00]} Be6 {[%emt 0:00:26] [#]} 19. Rac1 {[%emt 0:00:00]} (19. c7 $1 $18 {[%cal Rc7d8]} Qc8 20. Rac1) 19... Rc8 {[%emt 0:00:03] [#]} (19... Qb6 $16 20. c7 Rac8) 20. Rfe1 {[%emt 0:00:00]} (20. c7 $1 $18 {[%cal Rc7d8] and the rest is easy.} Qh4 21. Rfe1) 20... Qb6 {[%emt 0:00:50]} (20... Re8 $16 {was necessary.}) 21. Nd7 $18 {[%emt 0:00:00]} Bxd7 {[%emt 0:00:01]} (21... Qd4 22. Qxd4 Bxd4 23. Nxf8 Kxf8) 22. cxd7 {[%emt 0:00:00]} Rxc1 {[%emt 0:00:01]} 23. Qxc1 {[%emt 0:00:00]} ({Weaker is} 23. Rxc1 Qe6 $16) 23... Bd4 {[%emt 0:00:47]} 24. Re8 {[%emt 0:00:00] Bh6 would kill now.} Bxf2+ {[%emt 0:00:12]} 25. Kh1 {[%emt 0:00:00]} Bh4 {[%emt 0:00:01]} 26. Bh6 {[%emt 0:00:00][%mdl 64] Pin.   Weighted Error Value: White=0.24 (precise) /Black=0.87} 1-0

[Event "Romanian Rapid Open 2022"]
[Site "Sebes"]
[Date "2022.12.02"]
[Round "2.4"]
[White "Dan, Cantemir-Dorian"]
[Black "Miron, Lucian-Costin"]
[Result "0-1"]
[ECO "A46"]
[WhiteElo "2036"]
[BlackElo "2510"]
[Annotator "TA"]
[PlyCount "86"]
[EventDate "2022.12.02"]
[EventType "rapid"]
[EventCountry "ROU"]
[SourceTitle "playchess.com"]
[Source "ChessBase"]
[SourceQuality "1"]
[TimeControl "600+5"]

{[%evp 9,86,-2,-7,0,16,-6,8,-6,-6,-3,0,0,0,-22,0,0,49,0,23,-13,-9,-14,0,0,0,4,221,220,210,80,86,90,234,231,220,219,256,-15,-12,-4,15,-11,23,-208,-222,-222,-218,-257,-257,-273,-273,-329,-327,-304,-120,-247,-247,-255,-257,-266,-280,-263,-262,-297,-290,-296,-285,-420,-407,-866,-840,-1196,-1196,-1035,-395,-685,-675,-29995,-5502]} 1. d4 {[%emt 0:00:02]} Nf6 {[%emt 0:00:01]} 2. Nf3 {[%emt 0:00:06]} e6 {[%emt 0:00:01]} 3. g3 {[%emt 0:00:10]} b5 {[%emt 0:00:01]} 4. a4 {[%emt 0:00:12]} b4 {[%emt 0:00:01]} 5. c4 {[%emt 0:00:09]} bxc3 {[%emt 0:00:03]} 6. bxc3 {[%emt 0:00:14] A46: 1 d4 Nf6 2 Nf3 e6: Torre, London and Colle Systems.} Nc6 {[%emt 0:00:27]} 7. Bg2 {[%emt 0:00:03]} Rb8 {[%emt 0:00:02]} 8. O-O {[%emt 0:00:30] The position is equal.} Na5 {[%emt 0:00:00]} 9. Ba3 {[%emt 0:00:47]} Bxa3 {[%emt 0:00:51]} 10. Nxa3 {[%emt 0:00:15]} Ba6 {[%emt 0:00:02]} 11. Qc2 {[%emt 0:00:18]} d5 {[%emt 0:00:52] [#] Prevents c4.} 12. Rfb1 $146 {[%emt 0:00:24]} ({Predecessor:} 12. Ne5 O-O 13. Rfb1 Nd7 14. Rxb8 Nxb8 15. Nd3 Bxd3 16. Qxd3 Nbc6 17. Rd1 Qe7 18. c4 {1-0 (44) Wiechert,H (2185)-Buecker,S (2291) Walldorf 2017}) 12... Rb6 {[%emt 0:01:09] [#]} (12... Rxb1+ $11 13. Rxb1 O-O) 13. Ne5 {[%emt 0:00:17]} (13. Rb5 $1 $14 {is superior.} Bxb5 14. axb5) 13... O-O {[%emt 0:00:11]} 14. e3 {[%emt 0:00:44]} Nd7 {[%emt 0:00:15]} 15. Nd3 {[%emt 0:00:46]} Qe7 {[%emt 0:00:19]} 16. Nb4 {[%emt 0:00:13]} Bc4 {[%emt 0:00:25]} 17. Nxc4 {[%emt 0:00:45]} Nxc4 {[%emt 0:00:02]} (17... dxc4 $11 {and Black is okay.} 18. d5 Nc5) 18. a5 $18 {[%emt 0:00:19]} Rd6 {[%emt 0:01:02]} 19. Bf1 {[%emt 0:00:13]} (19. e4 $18 {is more deadly.}) 19... c5 $16 {[%emt 0:00:07] [#]} 20. Nd3 {[%emt 0:01:15]} Rc6 {[%emt 0:00:02]} (20... cxd4 $16 21. cxd4 Ra8) 21. Rb7 $18 {[%emt 0:00:25]} cxd4 {[%emt 0:00:03]} 22. exd4 {[%emt 0:00:07]} ({Stronger than} 22. Rxa7 dxe3 23. fxe3 Qd6 $15) 22... Nd6 {[%emt 0:00:12][%cal Bc4d6,Bd6c4,Bc4d2][%mdl 32]} 23. Rb3 {[%emt 0:00:29]} ({Much less strong is} 23. Rxa7 Qd8 24. Qa4 Rc7 25. Rxc7 Qxc7 $18) ({White should try} 23. Ne5 $18 Nxb7 24. Nxc6) 23... g6 {[%emt 0:01:20]} 24. Rab1 {[%emt 0:00:29]} Nc4 {[%emt 0:00:10]} 25. Qa2 {[%emt 0:00:12] Prevents Na3.} Qd6 {[%emt 0:00:49]} 26. Qa4 $2 {[%emt 0:00:18]} (26. Rb7 $11) 26... Nd2 $1 $19 {[%emt 0:00:14][%csl LRb1,LRb3] Pair of Knights!} 27. Nb4 {[%emt 0:00:53]} Rcc8 {[%emt 0:00:07]} 28. Ba6 {[%emt 0:00:09][%cal Ob1b2]} Rc7 {[%emt 0:00:05]} 29. R1b2 {[%emt 0:00:21]} Nxb3 {[%emt 0:00:02]} 30. Rxb3 {[%emt 0:00:02]} Nf6 {[%emt 0:00:19]} 31. f3 {[%emt 0:00:08]} Rb8 $2 {[%emt 0:00:03]} (31... e5 $19 {has better winning chances. ...exd4 is the strong threat.} 32. Qa3 e4) 32. Bb5 {[%emt 0:00:10]} (32. Nxd5 $17 Rxb3 33. Nxf6+ Kh8 34. Qxb3 Qxa6 35. Qa3) 32... Rbc8 {[%emt 0:00:07]} 33. Ba6 {[%emt 0:00:10]} Rf8 {[%emt 0:00:50]} 34. Bb5 {[%emt 0:00:07]} e5 {[%emt 0:00:02]} 35. Na6 {[%emt 0:00:10]} Re7 {[%emt 0:00:02]} 36. Nc5 {[%emt 0:00:19]} exd4 {[%emt 0:00:19]} 37. cxd4 {[%emt 0:00:01]} Rb8 {[%emt 0:00:14]} 38. Na6 {[%emt 0:00:09]} (38. Qa2 {was necessary.}) 38... Rc8 {[%emt 0:00:03]} 39. Nc5 {[%emt 0:00:02]} (39. Rb1 $142 Re3 40. Qd1) 39... Rxc5 {[%emt 0:00:15]} 40. dxc5 {[%emt 0:00:04]} Qxc5+ {[%emt 0:00:01]} 41. Kg2 {[%emt 0:00:10]} Qc2+ $2 {[%emt 0:00:09]} (41... Re1 {( -> ...Qc2+)} 42. Kh3 Rg1) 42. Kf1 $2 {[%emt 0:00:30]} (42. Kh3 Re5 43. Rb4) 42... Qxh2 {[%emt 0:00:19]} 43. Qf4 {[%emt 0:00:10]} Nh5 {[%emt 0:00:26] Weighted Error Value: White=0.91/Black=0.35} (43... Qh1+ $142 44. Kf2 {[#]} Re1 $1 45. Qb8+ Kg7 46. Qf8+ Kxf8 47. g4 Qg1#) 0-1

[Event "Romanian Rapid Open 2022"]
[Site "Sebes"]
[Date "2022.12.02"]
[Round "2.5"]
[White "Costachi, Mihnea"]
[Black "Oltean, Cristian-Daniel"]
[Result "1-0"]
[ECO "D33"]
[WhiteElo "2476"]
[BlackElo "1896"]
[Annotator "TA"]
[PlyCount "149"]
[EventDate "2022.12.02"]
[EventType "rapid"]
[EventCountry "ROU"]
[SourceTitle "playchess.com"]
[Source "ChessBase"]
[SourceQuality "1"]
[TimeControl "600+5"]

{[%evp 16,149,33,23,24,24,14,17,14,29,30,37,33,14,43,56,44,18,18,18,18,18,25,13,13,13,37,0,0,0,43,38,133,67,72,69,130,130,121,19,104,2,56,65,49,24,24,24,29,31,107,106,119,117,164,165,215,203,186,165,165,165,165,165,214,110,110,110,164,140,136,110,118,0,127,110,213,213,455,213,257,206,283,283,321,197,190,190,397,291,205,82,116,18,18,18,18,18,18,11,11,0,0,0,18,0,3,3,3,0,11,11,18,18,18,18,18,0,18,18,18,18,18,4,4,4,18,18,116,116,116,116,116,116,29998,29999]} 1. d4 {[%emt 0:00:04]} d5 {[%emt 0:00:04]} 2. c4 {[%emt 0:00:04]} e6 {[%emt 0:00:03]} 3. Nc3 {[%emt 0:00:02]} c5 {[%emt 0:00:11]} 4. cxd5 {[%emt 0:00:02]} exd5 {[%emt 0:00:01]} 5. Nf3 {[%emt 0:00:03][%cal Bg1f3,Bf3d4,Bd4b3][%mdl 32]} Nc6 {[%emt 0:00:03]} 6. g3 {[%emt 0:00:01]} Nf6 {[%emt 0:00:02]} 7. Bg2 {[%emt 0:00:02]} cxd4 {[%emt 0:00:03] outshines the older 7...Be7.} 8. Nxd4 {[%emt 0:00:02]} Bc5 {[%emt 0:00:03]} 9. Nb3 {[%emt 0:00:41][%csl LRc5,LRd5]} (9. Be3 {with more complications.} Qb6 10. Na4 Qa5+ 11. Bd2) 9... Bb6 {[%emt 0:00:03] D33: Tarrasch Defence: 6 g3 sidelines.} 10. O-O {[%emt 0:01:13][%cal Oc1g5]} (10. Bxd5 Nb4 11. Bf3 Qxd1+ 12. Kxd1 Ng4 13. Bxg4 Bxg4 $11) 10... d4 {[%emt 0:00:02]} 11. Na4 {[%emt 0:00:27]} O-O {[%emt 0:00:04] The position is equal.} 12. Nxb6 {[%emt 0:00:33]} axb6 {[%emt 0:00:03]} 13. Bg5 {[%emt 0:00:55]} Be6 {[%emt 0:00:18]} 14. Bxc6 {[%emt 0:00:26]} bxc6 {[%emt 0:00:02]} (14... Bxb3 {simplifies} 15. Qxb3 bxc6 16. e3 c5) 15. Qxd4 {[%emt 0:01:09]} c5 {[%emt 0:00:03] [#]} 16. Bxf6 $146 {[%emt 0:00:44]} ({Predecessor:} 16. Qh4 h6 17. Bxf6 Qxf6 18. Qxf6 gxf6 19. Rfd1 Rfd8 20. Rxd8+ Rxd8 21. e3 Bh3 22. Rc1 {0-1 (62) Harshavardhan,G (2397)-Nesterov,A (2476) Chess.com INT 2021}) 16... Qxf6 {[%emt 0:00:02]} 17. Qxf6 {[%emt 0:00:05]} gxf6 {[%emt 0:00:02]} 18. Rfd1 {[%emt 0:00:15]} Rfd8 {[%emt 0:00:39]} 19. Rxd8+ {[%emt 0:01:21]} Rxd8 $11 {[%emt 0:00:02][%mdl 4096] Endgame KRB-KRN} 20. e3 {[%emt 0:00:00]} Ra8 {[%emt 0:00:36] Strongly threatening ...Bxb3.} 21. Nc1 {[%emt 0:00:10]} Rd8 {[%emt 0:00:05]} 22. Nb3 {[%emt 0:00:56]} Ra8 {[%emt 0:00:02] aiming for ...Bxb3.} 23. Nd2 {[%emt 0:00:16]} Bxa2 {[%emt 0:07:55]} ({Better is} 23... Rd8 $14 24. Ne4 f5) 24. b3 {[%emt 0:00:09]} (24. Ne4 $1 $16) 24... Kg7 $14 {[%emt 0:00:23]} 25. Kf1 {[%emt 0:00:12]} b5 {[%emt 0:00:02]} (25... Ra6 $14) 26. Ke1 $16 {[%emt 0:00:15]} Ra3 {[%emt 0:00:40]} 27. e4 {[%emt 0:00:41]} ({White should try} 27. Ne4 $16 c4 28. b4 (28. bxc4 b4 $11)) 27... Ra6 {[%emt 0:00:35]} (27... Kf8 $11) 28. f4 {[%emt 0:00:18]} (28. Nb1 $16 {Threatens to win with Nc3.} b4 29. Nd2) 28... c4 {[%emt 0:00:01]} (28... Ra3 $11) 29. bxc4 $14 {[%emt 0:00:08]} bxc4 {[%emt 0:00:01]} 30. Rc1 {[%emt 0:00:37] Against c3} (30. Nb1 $5 {[%cal Rb1c3]} Rb6 31. Nc3 $14 (31. Rxa2 Rxb1+ 32. Ke2 Rb3 $14)) 30... Rc6 {[%emt 0:00:19]} 31. Rc3 {[%emt 0:00:02]} (31. Rc2 Ra6 $16) 31... Rb6 {[%emt 0:00:02]} 32. Ke2 {[%emt 0:00:03]} (32. Nxc4 $2 {perishes.} Rc6 33. Rc2 Bxc4 $19) 32... Bb1 {[%emt 0:00:03]} (32... Rb2 $14) 33. Rxc4 $16 {[%emt 0:00:15]} Rb2 {[%emt 0:00:08]} 34. Ke3 {[%emt 0:00:08]} Ba2 {[%emt 0:00:02]} (34... f5 $16 {was worth a try.}) 35. Rc7 $18 {[%emt 0:00:06]} Be6 {[%emt 0:00:05]} (35... Rb8 {was called for.} 36. f5 Bb3) 36. f5 {[%emt 0:00:17]} Ba2 {[%emt 0:00:04]} 37. h4 {[%emt 0:00:04]} h5 {[%emt 0:00:02]} 38. Ra7 {[%emt 0:00:07]} Bb1 {[%emt 0:00:03]} 39. Rd7 {[%emt 0:00:14]} Bc2 {[%emt 0:00:04]} (39... Kg8 {might work better.} 40. Kf4 Rb4) 40. Kf4 {[%emt 0:00:05]} (40. Nc4 $1 $18 {[%cal Rc4b2]} Rb3+ 41. Kf4) 40... Rb4 $16 {[%emt 0:00:02]} 41. Rc7 {[%emt 0:00:07]} Bd1 {[%emt 0:00:07]} (41... Bd3 $16 42. Ke3 Ba6) 42. Rc4 {[%emt 0:00:04]} Rb2 {[%emt 0:00:03]} 43. Rd4 {[%emt 0:00:01]} Ra2 {[%emt 0:00:04]} 44. Rd3 {[%emt 0:00:05] Prevents Ra3.} (44. Ke3 $16) 44... Bc2 {[%emt 0:00:04]} (44... Be2 $11 {keeps the balance.} 45. Rd6 Ra3) 45. Rd6 {[%emt 0:00:02]} Ra3 {[%emt 0:00:03] [#]} (45... Bd1 $16 {is a better defense.}) 46. Nc4 $1 $18 {[%emt 0:00:07]} Rc3 {[%emt 0:00:04]} (46... Ra4 47. Rc6 Ra2) 47. Rd4 {[%emt 0:00:05]} (47. Nb6 $142) 47... Bd3 {[%emt 0:00:13]} 48. Ne3 {[%emt 0:00:10] And now Rd6 would win.} Be2 {[%emt 0:00:02]} 49. Rd2 {[%emt 0:00:02]} Bb5 {[%emt 0:00:02]} 50. g4 {[%emt 0:00:02]} hxg4 {[%emt 0:00:08]} 51. Rg2 {[%emt 0:00:00]} Bc6 $2 {[%emt 0:00:09]} (51... Rc1 {was necessary.} 52. Rxg4+ (52. Nxg4 Rf1+ 53. Ke3 Rb1 $18) 52... Kh6) 52. Nxg4 {[%emt 0:00:06]} Rc1 {[%emt 0:00:15]} 53. Ne5+ {[%emt 0:00:16]} (53. Ne3+ $18 Kf8 54. h5) 53... Kf8 {[%emt 0:00:02]} 54. Nxc6 {White is more active.} (54. Nf3 $16) 54... Rxc6 $16 {[%emt 0:00:01] KR-KR} 55. Rg3 {[%emt 0:00:14]} Rc1 {[%emt 0:00:02]} 56. Rh3 {[%emt 0:00:03]} Rf1+ {[%emt 0:00:06]} 57. Rf3 {[%emt 0:00:01]} Rh1 {[%emt 0:00:03]} 58. Kg4 {[%emt 0:00:01]} Re1 {[%emt 0:00:02]} 59. Kf4 {[%emt 0:00:05]} Rh1 {[%emt 0:00:01]} 60. Kg3 {[%emt 0:00:01]} Re1 {[%emt 0:00:06]} 61. Rf4 {[%emt 0:00:01]} Kg7 {[%emt 0:00:06]} 62. Rg4+ {[%emt 0:00:00]} Kh7 {[%emt 0:00:03]} 63. Kf2 {[%emt 0:00:02]} Rh1 {[%emt 0:00:02]} 64. Ke3 {[%emt 0:00:02]} Rd1 {[%emt 0:00:04]} 65. Rg2 {[%emt 0:00:03]} Rh1 {[%emt 0:00:01]} 66. Rg4 {[%emt 0:00:01]} Rd1 {[%emt 0:00:02]} 67. Ke2 {[%emt 0:00:01]} Rh1 {[%emt 0:00:05]} 68. Kd3 {[%emt 0:00:17]} Kh6 {[%emt 0:00:01]} 69. Kd4 {[%emt 0:00:06]} Rd1+ {[%emt 0:00:25]} 70. Kc5 {[%emt 0:00:04]} Kh7 {[%emt 0:00:04]} (70... Kh5 $5 {[%cal Rh5g4]} 71. Rf4 (71. Rg7 Kxh4 72. Rxf7 Kg5 $11) 71... Rd2 $11) 71. Rg3 {[%emt 0:00:07]} Rh1 {[%emt 0:00:01] [#]} (71... Re1 $11 {remains equal.}) 72. Kd6 $1 {[%emt 0:00:11]} Rxh4 {[%emt 0:00:02]} 73. Ke7 $1 {[%emt 0:00:00][%csl LRf6,LRf7]} Rxe4+ {[%emt 0:00:05]} 74. Kxf7 {[%emt 0:00:01] Threatening mate with Rh3+.} ({Don't play} 74. Kxf6 $6 Ra4 $11) 74... Ra4 $2 {[%emt 0:00:16][%mdl 8192]} (74... Rh4 $16 75. Kxf6 Ra4) 75. Rh3+ {[%emt 0:00:02] Weighted Error Value: White=0.30/Black=0.37} 1-0